fUST/lending_fUST_20250326
["ID","MTS","AMOUNT","RATE_DAILY","PERIOD"]
[356681692,1742941868554,-1500.0,0.00030571,5]
[356681693,1742941868564,-1500.0,0.00030571,5]
[356681694,1742941868574,-1500.0,0.00030571,5]
[356681695,1742941868584,-1393.96059714,0.00030571,5]
[356681696,1742941868594,-1500.0,0.00030571,5]
[356681697,1742941868604,-1500.0,0.00030571,5]
[356681698,1742941868614,-1500.0,0.00030571,5]
[356681699,1742941868624,-1500.0,0.00030571,5]
[356681700,1742941868634,-200.0,0.0003069,30]
[356681701,1742941868644,-1007.17382146,0.00030766,2]
[356681702,1742941868654,-2400.0,0.00030856,7]
[356681703,1742941868664,-5429.68150845,0.00031,120]
[356681704,1742941868673,-198.3221019,0.00031,5]
[356681705,1742941868683,-600.0,0.00031037,2]
[356681706,1742941868692,-845.3688103,0.0003104,4]
[356681707,1742941868703,-2500.0,0.000312,120]
[356681708,1742941868713,-200.0,0.00031248,120]
[356681709,1742941868723,-600.0,0.0003136,2]
[356681710,1742941868732,-2000.0,0.00031588,4]
[356681711,1742941868742,-600.0,0.00031683,2]
[356681712,1742941868751,-200.0,0.00031788,120]
[356681713,1742941868760,-200.0,0.00031968,120]
[356681714,1742941868771,-151.0,0.00031999,2]
[356681715,1742941868780,-2500.0,0.00032,120]
[356681716,1742941868790,-11967.05415212,0.00032,15]
[356681717,1742941868800,-151.06424284,0.00032,120]
[356681718,1742941868809,-418.3522718,0.00032,120]
[356681719,1742941868819,-160.0,0.00032387,3]
[356681720,1742941868828,-160.0,0.00032387,5]
[356681721,1742941868838,-200.0,0.00032396,120]
[356681722,1742941868848,-200.0,0.00032469,120]
[356681723,1742941868857,-2400.0,0.000325,7]
[356681724,1742941868866,-200.0,0.00032527,120]
[356681725,1742941868875,-153.0,0.00032655,2]
[356681726,1742941868885,-153.0,0.00032656,2]
[356681727,1742941868895,-514.64639819,0.00032774,30]
[356681728,1742941868904,-200.0,0.0003283,36]
[356681729,1742941868914,-500.0,0.00032876,8]
[356681730,1742941868924,-209.13770575,0.00032876,8]
[356681731,1742941868934,-1000.0,0.00032876,120]
[356681732,1742941868944,-500.0,0.00032876,2]
[356681733,1742941868956,-500.0,0.00032876,2]
[356681734,1742941868966,-500.0,0.00032876,2]
[356681735,1742941868976,-500.0,0.00032876,2]
[356681736,1742941868986,-500.0,0.00032876,2]
[356681737,1742941868996,-500.0,0.00032876,2]
[356681738,1742941869006,-500.0,0.00032876,2]
[356681739,1742941869015,-500.0,0.00032876,2]
[356681740,1742941869025,-500.0,0.00032876,2]
[356681741,1742941869038,-500.0,0.00032876,2]
[356681742,1742941869048,-500.0,0.00032876,2]
[356681743,1742941869057,-500.0,0.00032876,2]
[356681744,1742941869066,-582.09325079,0.00032876,2]
[356681745,1742941869076,-300.0,0.00032876,30]
[356681746,1742941869087,-300.0,0.00032876,30]
[356681747,1742941869097,-300.0,0.00032876,30]
[356681748,1742941869107,-300.0,0.00032876,30]
[356681749,1742941869117,-300.0,0.00032876,30]
[356681750,1742941869127,-300.0,0.00032876,30]
[356681751,1742941869137,-300.0,0.00032876,30]
[356681752,1742941869146,-300.0,0.00032876,30]
[356681753,1742941869155,-300.0,0.00032876,30]
[356681754,1742941869165,-300.0,0.00032876,30]
[356681755,1742941869177,-300.0,0.00032876,30]
[356681756,1742941869187,-500.0,0.00032877,2]
[356681757,1742941869197,-269.69009436,0.00032877,2]
[356681758,1742941869207,-15000.0,0.00032877,5]
[356681759,1742941869216,-884.0,0.00032877,2]
[356681760,1742941869226,-500.0,0.00032877,7]
[356681761,1742941869535,-500.0,0.00032877,7]
[356681762,1742941869553,-500.0,0.00032877,7]
[356681763,1742941869566,-500.0,0.00032877,7]
[356681764,1742941869576,-500.0,0.00032877,7]
[356681765,1742941869585,-500.0,0.00032877,7]
[356681766,1742941869595,-500.0,0.00032877,7]
[356681767,1742941869604,-500.0,0.00032877,7]
[356681768,1742941869614,-500.0,0.00032877,7]
[356681769,1742941869623,-373.25866647,0.00032877,7]
[356681770,1742941869632,-500.0,0.00032877,7]
[356681771,1742941869642,-500.0,0.00032877,7]
[356681772,1742941869651,-500.0,0.00032877,7]
[356681773,1742941869661,-500.0,0.00032877,7]
[356681774,1742941869670,-500.0,0.00032877,7]
[356681775,1742941869679,-500.0,0.00032877,7]
[356681776,1742941869689,-500.0,0.00032877,7]
[356681777,1742941869698,-500.0,0.00032877,7]
[356681778,1742941869707,-500.0,0.00032877,7]
[356681779,1742941869717,-500.0,0.00032877,7]
[356681780,1742941869726,-500.0,0.00032877,7]
[356681781,1742941869736,-500.0,0.00032877,7]
[356681782,1742941869745,-500.0,0.00032877,7]
[356681783,1742941869755,-1000.0,0.00032904,120]
[356681784,1742941869764,-1000.0,0.00032931,120]
[356681785,1742941869774,-200.0,0.00032931,120]
[356681786,1742941869784,-1000.0,0.00032958,120]
[356681787,1742941869793,-1000.0,0.00032986,120]
[356681788,1742941869802,-160.40618492,0.00033,30]
[356681789,1742941869812,-201.22590991,0.00033,14]
[356681790,1742941869822,-160.0,0.00033,30]
[356681791,1742941869831,-160.0,0.00033,7]
[356681792,1742941869841,-160.0,0.00033,7]
[356681793,1742941869850,-418.3522718,0.00033,7]
[356681794,1742941869861,-834.75273087,0.00033,7]
[356681795,1742941869870,-267.0,0.00033,2]
[356681796,1742941869880,-267.0,0.00033,2]
[356681797,1742941869890,-1000.0,0.00033013,120]
[356681798,1742941869899,-884.0,0.00033014,2]
[356681799,1742941869908,-1000.0,0.00033041,120]
[356681800,1742941869918,-1000.0,0.00033068,120]
[356681801,1742941869927,-1037.21441729,0.00033095,120]
[356681802,1742941869936,-884.0,0.00033151,2]
[356681803,1742941869946,-500.6427919,0.00033173,5]
[356681804,1742941869960,-2000.0,0.0003327,4]
[356681805,1742941869970,-884.0,0.00033288,2]
[356681806,1742941869980,-200.0,0.00033308,120]
[356681807,1742941869992,-200.0,0.00033359,120]
[356681808,1742941870003,-1000.0,0.00033424,21]
[356681809,1742941870012,-884.0,0.00033425,2]
[356681810,1742941870023,-884.0,0.00033562,2]
[356681811,1742941870033,-884.0,0.00033699,2]
[356681812,1742941870043,-884.0,0.00033836,2]
[356681813,1742941870052,-1511.67466343,0.000339,7]
[356681814,1742941870062,-200.0,0.00033926,120]
[356681815,1742941870072,-884.0,0.00033973,2]
[356681816,1742941870082,-300.0,0.00034,14]
[356681817,1742941870093,-1000.0,0.00034,2]
[356681818,1742941870102,-200.0,0.00034,120]
[356681819,1742941870112,-494.0,0.00034,17]
[356681820,1742941870122,-418.3522718,0.00034,7]
[356681821,1742941870132,-179.65864857,0.00034,12]
[356681822,1742941870142,-884.0,0.0003411,2]
[356681823,1742941870152,-2400.0,0.00034144,60]
[356681824,1742941870162,-884.0,0.00034247,2]
[356681825,1742941870171,-884.0,0.00034384,2]
[356681826,1742941870181,-884.0,0.00034521,2]
[356681827,1742941870190,-200.0,0.00034612,120]
[356681828,1742941870200,-884.0,0.00034658,2]
[356681829,1742941870210,-884.0,0.00034795,2]
[356681830,1742941870219,-200.0,0.00034813,120]
[356681831,1742941870228,-1333.0,0.00034849,120]
[356681832,1742941870238,-3123.80364925,0.0003487,4]
[356681833,1742941870248,-884.0,0.00034932,2]
[356681834,1742941870257,-2000.0,0.00034953,4]
[356681835,1742941870267,-200.0,0.0003498,42]
[356681836,1742941870276,-10546.26916023,0.00035,2]
[356681837,1742941870286,-876.39539995,0.00035,2]
[356681838,1742941870296,-500.0,0.00035,2]
[356681839,1742941870306,-48998.999999,0.00035,3]
[356681840,1742941870319,-540.71275,0.00035,5]
[356681841,1742941870329,-540.71275,0.00035,5]
[356681842,1742941870338,-2000.0,0.00035,2]
[356681843,1742941870348,-5000.0,0.00035,2]
[356681844,1742941870358,-150.0,0.00035,69]
[356681845,1742941870368,-160.0,0.00035,3]
[356681846,1742941870378,-160.0,0.00035,3]
[356681847,1742941870388,-5833.43439696,0.00035,14]
[356681848,1742941870398,-3457.14124171,0.00035,120]
[356681849,1742941870407,-4383.8207922,0.00035,120]
[356681850,1742941870417,-681.72334989,0.00035,120]
[356681851,1742941870426,-418.3522718,0.00035,3]
[356681852,1742941870436,-834.75273087,0.00035,3]
[356681853,1742941870449,-518.10856773,0.00035,120]
[356681854,1742941870458,-400.85683206,0.00035,7]
[356681855,1742941870468,-500.0,0.00035,14]
[356681856,1742941870477,-1564.15,0.00035,14]
[356681857,1742941870486,-884.0,0.00035069,2]
[356681858,1742941870497,-200.0,0.00035126,120]
[356681859,1742941870506,-884.0,0.00035206,2]
[356681860,1742941870516,-2400.0,0.0003524,60]
[356681861,1742941870526,-200.0,0.00035284,120]
[356681862,1742941870536,-884.0,0.00035343,2]
[356681863,1742941870546,-200.0,0.00035371,120]
[356681864,1742941870556,-898.32914756,0.0003548,2]
[356681865,1742941870566,-494.0,0.000355,18]
[356681866,1742941870575,-200.0,0.00035598,120]
[356681867,1742941870586,-500.0,0.00035616,2]
[356681868,1742941870597,-500.0,0.00035616,2]
[356681869,1742941870607,-500.0,0.00035616,2]
[356681870,1742941870617,-500.0,0.00035616,2]
[356681871,1742941870626,-500.0,0.00035616,2]
[356681872,1742941870636,-560.19518559,0.00035616,2]
[356681873,1742941870646,-253.35775,0.00035888,5]
[356681874,1742941870655,-500.0,0.0003589,2]
[356681875,1742941870665,-200.0,0.00035918,120]
[356681876,1742941870674,-1662.84212977,0.00035934,11]
[356681877,1742941870684,-540.71275,0.00035958,5]
[356681878,1742941870693,-7734.63475004,0.00036,2]
[356681879,1742941870702,-200.0,0.00036,120]
[356681880,1742941870712,-150.0,0.00036,86]
[356681881,1742941870722,-26633.7508679,0.00036,120]
[356681882,1742941870731,-854.08391699,0.00036,120]
[356681883,1742941870740,-418.3522718,0.00036,120]
[356681884,1742941870750,-834.75273087,0.00036,7]
[356681885,1742941870760,-267.0,0.00036,2]
[356681886,1742941870770,-267.0,0.00036,2]
[356681887,1742941870779,-267.0,0.00036,2]
[356681888,1742941870789,-23049.9150616,0.000362,98]
[356681889,1742941870798,-23049.91506158,0.000362,98]
[356681890,1742941870807,-23049.91506158,0.000362,98]
[356681891,1742941870816,-201.21567992,0.0003621,2]
[356681892,1742941870826,-261.72305186,0.0003624,2]
[356681893,1742941870835,-2400.0,0.00036336,60]
[356681894,1742941870845,-527.90697253,0.000365,120]
[356681895,1742941870855,-4541.0,0.000366,30]
[356681896,1742941870864,-2000.0,0.00036635,4]
[356681897,1742941870873,-200.0,0.00036707,120]
[356681898,1742941870882,-190.13906938,0.00036822,2]
[356681899,1742941870892,-200.0,0.00036893,120]
[356681900,1742941870901,-4332.16525495,0.00036898,120]
[356681901,1742941870910,-200.0,0.0003692,120]
[356681902,1742941870919,-8441.62018817,0.00037,3]
[356681903,1742941870929,-494.0,0.00037,19]
[356681904,1742941870938,-153.15,0.00037,103]
[356681905,1742941870947,-418.3522718,0.00037,30]
[356681906,1742941870960,-834.75273087,0.00037,30]
[356681907,1742941870969,-340.0,0.0003713,48]
[356681908,1742941870979,-250.61598,0.000372,120]
[356681909,1742941870988,-268.74235,0.000372,120]
[356681910,1742941870998,-226.41059,0.000372,120]
[356681911,1742941871007,-313.86122,0.000372,120]
[356681912,1742941871016,-343.87004,0.000372,120]
[356681913,1742941871026,-200.0,0.000372,120]
[356681914,1742941871037,-200.0,0.00037266,120]
[356681915,1742941871046,-200.0,0.000373,120]
[356681916,1742941871055,-200.0,0.00037355,120]
[356681917,1742941871065,-2400.0,0.00037432,60]
[356681918,1742941871074,-2000.0,0.000375,15]
[356681919,1742941871084,-150.0,0.000375,112]
[356681920,1742941871094,-23049.91506158,0.00037525,105]
[356681921,1742941871103,-1004.94564608,0.000376,10]
[356681922,1742941871112,-1003.72958712,0.000378,2]
[356681923,1742941871122,-200.0,0.0003781,120]
[356681924,1742941871131,-167.5,0.000379,7]
[356681925,1742941871141,-200.0,0.0003792,120]
[356681926,1742941871150,-200.0,0.00037954,120]
[356681927,1742941871159,-1662.84212977,0.00037968,11]
[356681928,1742941871169,-1500.0,0.00038,2]
[356681929,1742941871178,-1500.0,0.00038,2]
[356681930,1742941871188,-1500.0,0.00038,2]
[356681931,1742941871197,-1500.0,0.00038,2]
[356681932,1742941871206,-1500.0,0.00038,2]
[356681933,1742941871216,-1500.0,0.00038,2]
[356681934,1742941871225,-1500.0,0.00038,2]
[356681935,1742941871235,-1500.0,0.00038,2]
[356681936,1742941871244,-1500.0,0.00038,2]
[356681937,1742941871254,-1037.13,0.00038,2]
[356681938,1742941871264,-200.0,0.00038,120]
[356681939,1742941871273,-2111.625206,0.00038,120]
[356681940,1742941871283,-164.71436575,0.00038,2]
[356681941,1742941871293,-2000.0,0.00038318,4]
[356681942,1742941871303,-200.0,0.00038342,120]
[356681943,1742941871312,-796.43069791,0.00038352,5]
[356681944,1742941871322,-1031.51198241,0.00038356,90]
[356681945,1742941871333,-166.0,0.00038356,2]
[356681946,1742941871342,-30000.0,0.00038356,5]
[356681947,1742941871352,-152.1,0.000385,120]
[356681948,1742941871361,-494.0,0.000385,20]
[356681949,1742941871371,-2400.0,0.00038528,60]
[356681950,1742941871381,-253.38193256,0.00038795,7]
[356681951,1742941871391,-734.19512833,0.00039,30]
[356681952,1742941871400,-1978.20250298,0.00039,30]
[356681953,1742941871410,-1842.50205406,0.00039,120]
[356681954,1742941871420,-267.0,0.00039,2]
[356681955,1742941871430,-267.0,0.00039,2]
[356681956,1742941871440,-267.0,0.00039,2]
[356681957,1742941871450,-200.0,0.00039125,120]
[356681958,1742941871459,-226.41059,0.000393,120]
[356681959,1742941871468,-313.86122,0.000393,120]
[356681960,1742941871478,-200.0,0.000393,120]
[356681961,1742941871488,-2000.0,0.00039345,5]
[356681962,1742941871499,-1519.07613919,0.00039345,5]
[356681963,1742941871509,-500.0,0.00039345,5]
[356681964,1742941871519,-297.94141,0.000394,120]
[356681965,1742941871528,-2400.0,0.00039624,60]
[356681966,1742941871538,-453.4447377,0.00039999,31]
[356681967,1742941871548,-210.02544362,0.00039999,31]
[356681968,1742941871558,-357.86141105,0.00039999,31]
[356681969,1742941871568,-500.0,0.00039999,31]
[356681970,1742941871578,-500.0,0.00039999,31]
[356681971,1742941871588,-500.0,0.00039999,31]
[356681972,1742941871597,-226.81294967,0.00039999,31]
[356681973,1742941871606,-500.0,0.00039999,2]
[356681974,1742941871616,-597.02874072,0.00039999,31]
[356681975,1742941871626,-500.0,0.00039999,31]
[356681976,1742941871636,-332.14289497,0.00039999,2]
[356681977,1742941871645,-641.90295558,0.00039999,31]
[356681978,1742941871655,-500.0,0.00039999,31]
[356681979,1742941871665,-500.0,0.00039999,31]
[356681980,1742941871675,-500.0,0.00039999,31]
[356681981,1742941871685,-500.0,0.00039999,31]
[356681982,1742941871694,-10000.0,0.0004,40]
[356681983,1742941871703,-150.0,0.0004,7]
[356681984,1742941871712,-2000.0,0.0004,15]
[356681985,1742941871722,-2000.0,0.0004,15]
[356681986,1742941871731,-4066.56908358,0.0004,3]
[356681987,1742941871741,-170.75476541,0.0004,2]
[356681988,1742941871751,-193.39214926,0.0004,120]
[356681989,1742941871760,-300.0,0.0004,120]
[356681990,1742941871770,-8000.0,0.0004,2]
[356681991,1742941871779,-1713.0,0.0004,120]
[356681992,1742941871789,-547.89,0.0004,5]
[356681993,1742941871798,-10147.0,0.0004,120]
[356681994,1742941871808,-1712.0,0.0004,30]
[356681995,1742941871817,-1613.12011777,0.0004,60]
[356681996,1742941871827,-180573.16554428,0.0004,30]
[356681997,1742941872166,-153.0,0.00032643,2]
[356681998,1742941872176,-7166.6,0.0004,30]
[356681999,1742941872221,-13957.872814,0.0004,30]
[356682000,1742942034420,161.37,0.0001001,2]
[356682002,1742942409409,186.690623,0.00011418,120]
[356682003,1742942879549,-236.54546885,0.00010534,2]
[356682004,1742942950143,-300.0,0.0001064,2]
[356682005,1742942950165,-5273.47590845,0.00010641,2]
[356682006,1742942955343,-19160.1858,0.00010641,2]
[356682007,1742942970112,-401.34064217,0.00010641,2]
[356682008,1742943027438,-202.39100001,0.0001054,2]
[356682407,1742943043306,-1437.45986223,0.0001054,2]
[356682408,1742943043316,-64.99764938,0.00010641,2]
[356682409,1742943043327,-500.0,0.00010958,2]
[356682410,1742943043336,-47.77786764,0.00010958,2]
[356682467,1742943046215,-855.51213236,0.00010958,2]
[356682468,1742943046225,-500.0,0.00010958,2]
[356682469,1742943046235,-500.0,0.00010958,2]
[356682470,1742943046244,-500.0,0.00010958,2]
[356682471,1742943046254,-500.0,0.00010958,2]
[356682472,1742943046264,-500.0,0.00010958,2]
[356682473,1742943046274,-500.0,0.00010958,2]
[356682474,1742943046283,-500.0,0.00010958,2]
[356682475,1742943046292,-500.0,0.00010958,2]
[356682476,1742943046304,-500.0,0.00010958,2]
[356682477,1742943046327,-1208.12,0.00010958,2]
[356682478,1742943046336,-903.29,0.00011232,2]
[356682479,1742943046346,-500.0,0.00011232,2]
[356682480,1742943046356,-500.0,0.00011232,2]
[356682481,1742943046369,-500.0,0.00011232,2]
[356682482,1742943046379,-316.23,0.00011232,2]
[356682483,1742943046389,-489.37,0.00011232,2]
[356682484,1742943046399,-500.0,0.00011232,2]
[356682485,1742943046408,-500.0,0.00011232,2]
[356682486,1742943046418,-500.0,0.00011232,2]
[356682487,1742943046430,-401.16178508,0.00011232,2]
[356682488,1742943046443,-1208.12,0.00011232,2]
[356682489,1742943046454,-186.690623,0.00011418,2]
[356682490,1742943046463,-500.0,0.00011504,2]
[356682491,1742943046473,-500.0,0.00011504,2]
[356682492,1742943046482,-500.0,0.00011504,2]
[356682493,1742943046492,-500.0,0.00011504,2]
[356682494,1742943046501,-500.0,0.00011504,2]
[356682495,1742943046511,-216.05,0.00011504,2]
[356682496,1742943046520,-500.0,0.00011504,2]
[356682497,1742943046531,-500.0,0.00011504,2]
[356682498,1742943046541,-634.17,0.00011504,2]
[356682499,1742943046551,-500.0,0.00011504,2]
[356682500,1742943046561,-500.0,0.00011504,2]
[356682501,1742943046570,-500.0,0.00011504,2]
[356682502,1742943046580,-500.0,0.00011504,2]
[356682503,1742943046589,-599.0,0.00011504,2]
[356682504,1742943046599,-500.0,0.00011504,2]
[356682505,1742943046609,-152.61256475,0.00011504,2]
[356682510,1742943859914,-183.96653412,0.00010006,2]
[356682511,1742943903808,-300.0,0.00010005,2]
[356682512,1742943942124,-160.86692462,0.00010006,2]
[356682513,1742943945738,-250.934767,0.00010006,2]
[356682514,1742944028098,-461.29777326,0.00010005,2]
[356682515,1742944028121,-2424.27860342,0.00010006,2]
[356682516,1742944028947,-500.0,0.00010006,2]
[356682517,1742944036753,-235.64141489,0.00010005,2]
[356682518,1742944147092,-264.35858511,0.00010005,2]
[356682519,1742944147115,-235.64141489,0.00010005,2]
[356682520,1742944147136,-19184.72889134,0.00010006,2]
[356682521,1742944147157,-292.30575926,0.00010858,2]
[356682522,1742944147178,-4451.39066998,0.00010858,2]
[356682523,1742944171266,-548.60933002,0.00010858,2]
[356682524,1742944171292,-165.2804301,0.00010957,2]
[356682525,1742944171316,-691.2367624,0.00010958,2]
[356682545,1742944232449,-233.8446074,0.00010858,2]
[356682546,1742944232459,-500.0,0.00010958,2]
[356682547,1742944232468,-506.69195778,0.00010958,2]
[356682548,1742944232477,-500.0,0.00010958,2]
[356682549,1742944232486,-500.0,0.00010958,2]
[356682550,1742944232495,-500.0,0.00010958,2]
[356682551,1742944232504,-500.0,0.00010958,2]
[356682552,1742944232513,-500.0,0.00010958,2]
[356682553,1742944232522,-500.0,0.00010958,2]
[356682554,1742944232531,-500.0,0.00010958,2]
[356682555,1742944232540,-500.0,0.00010958,2]
[356682556,1742944232549,-500.0,0.00010958,2]
[356682557,1742944232558,-500.0,0.00010958,2]
[356682558,1742944232568,-500.0,0.00010958,2]
[356682559,1742944232578,-500.0,0.00010958,2]
[356682560,1742944232587,-1000.0,0.00010958,2]
[356682561,1742944232596,-500.0,0.00010958,2]
[356682562,1742944232605,-500.0,0.00010958,2]
[356682563,1742944232614,-500.0,0.00010958,2]
[356682564,1742944232623,-504.27615367,0.00010958,2]
[356682565,1742944232632,-500.0,0.00010958,2]
[356682566,1742944232641,-621.11537094,0.00010958,2]
[356682567,1742944232650,-500.0,0.00010958,2]
[356682568,1742944232660,-500.0,0.00010958,2]
[356682569,1742944232669,-500.0,0.00010958,2]
[356682570,1742944232678,-500.0,0.00010958,2]
[356682571,1742944232687,-500.0,0.00010958,2]
[356682572,1742944232696,-500.0,0.00010958,2]
[356682573,1742944232705,-500.0,0.00010958,2]
[356682574,1742944232714,-500.0,0.00010958,2]
[356682575,1742944232723,-500.0,0.00010958,2]
[356682576,1742944232733,-500.0,0.00010958,2]
[356682577,1742944232742,-500.0,0.00010958,2]
[356682578,1742944232752,-500.0,0.00010958,2]
[356682579,1742944232764,-500.0,0.00010958,2]
[356682580,1742944232773,-500.0,0.00010958,2]
[356682581,1742944232782,-500.0,0.00010958,2]
[356682582,1742944232791,-500.0,0.00010958,2]
[356682583,1742944232802,-500.0,0.00010958,2]
[356682584,1742944232812,-500.0,0.00010958,2]
[356682585,1742944232821,-500.0,0.00010958,2]
[356682586,1742944232831,-500.0,0.00010958,2]
[356682587,1742944232842,-500.0,0.00010958,2]
[356682588,1742944232853,-500.0,0.00010958,2]
[356682589,1742944232862,-500.0,0.00010958,2]
[356682590,1742944232871,-500.0,0.00010958,2]
[356682591,1742944232880,-500.0,0.00010958,2]
[356682592,1742944232889,-261.37864152,0.00010958,2]
[356682593,1742944232899,-500.0,0.00010958,2]
[356682594,1742944232909,-500.0,0.00010958,2]
[356682595,1742944232919,-500.0,0.00010958,2]
[356682596,1742944232928,-500.0,0.00010958,2]
[356682597,1742944232937,-500.0,0.00010958,2]
[356682598,1742944232947,-500.0,0.00010958,2]
[356682599,1742944232956,-500.0,0.00010958,2]
[356682600,1742944232965,-500.0,0.00010958,2]
[356682601,1742944232974,-500.0,0.00010958,2]
[356682602,1742944232983,-170.65876675,0.00010958,2]
[356682603,1742944232993,-500.0,0.00010958,2]
[356682604,1742944233002,-500.0,0.00010958,2]
[356682605,1742944233012,-500.0,0.00010958,2]
[356682606,1742944233021,-500.0,0.00010958,2]
[356682607,1742944233031,-500.0,0.00010958,2]
[356682608,1742944233040,-500.0,0.00010958,2]
[356682609,1742944233050,-500.0,0.00010958,2]
[356682610,1742944233060,-624.70813916,0.00010958,2]
[356682611,1742944233070,-500.0,0.00010958,2]
[356682612,1742944233081,-500.0,0.00010958,2]
[356682613,1742944233091,-604.9,0.00010958,2]
[356682614,1742944233101,-500.0,0.00010958,2]
[356682615,1742944233112,-500.0,0.00010958,2]
[356682616,1742944233122,-500.0,0.00010958,2]
[356682617,1742944233132,-500.0,0.00010958,2]
[356682618,1742944233143,-500.0,0.00010958,2]
[356682619,1742944233154,-500.0,0.00010958,2]
[356682620,1742944233165,-500.0,0.00010958,2]
[356682621,1742944233176,-500.0,0.00010958,2]
[356682622,1742944233187,-225.58850301,0.00010958,2]
[356682623,1742944233198,-500.0,0.00010958,2]
[356682624,1742944233208,-504.79,0.00010958,2]
[356682625,1742944233219,-500.0,0.00010958,2]
[356682626,1742944233230,-500.0,0.00010958,2]
[356682627,1742944233241,-500.0,0.00010958,2]
[356682628,1742944233251,-500.0,0.00010958,2]
[356682629,1742944233261,-500.0,0.00010958,2]
[356682630,1742944233272,-500.0,0.00010958,2]
[356682631,1742944233284,-500.0,0.00010958,2]
[356682632,1742944233295,-500.0,0.00010958,2]
[356682633,1742944233307,-500.0,0.00010958,2]
[356682634,1742944233317,-500.0,0.00010958,2]
[356682635,1742944233328,-500.0,0.00010958,2]
[356682636,1742944233337,-500.0,0.00010958,2]
[356682637,1742944233347,-335.4266352,0.00010958,2]
[356682666,1742944238367,-164.5733648,0.00010958,2]
[356682667,1742944238377,-500.0,0.00010958,2]
[356682668,1742944238386,-500.0,0.00010958,2]
[356682669,1742944238395,-500.0,0.00010958,2]
[356682670,1742944238405,-500.0,0.00010958,2]
[356682671,1742944238414,-500.0,0.00010958,2]
[356682672,1742944238423,-500.0,0.00010958,2]
[356682673,1742944238433,-500.0,0.00010958,2]
[356682674,1742944238442,-500.0,0.00010958,2]
[356682675,1742944238452,-500.0,0.00010958,2]
[356682676,1742944238461,-500.0,0.00010958,2]
[356682677,1742944238470,-500.0,0.00010958,2]
[356682678,1742944238479,-500.0,0.00010958,2]
[356682679,1742944238488,-500.0,0.00010958,2]
[356682680,1742944238498,-500.0,0.00010958,2]
[356682681,1742944238507,-500.0,0.00010958,2]
[356682682,1742944238516,-500.0,0.00010958,2]
[356682683,1742944238525,-500.0,0.00010958,2]
[356682684,1742944238535,-99.5266352,0.00010958,2]
[356682705,1742944243473,-406.42873646,0.00010958,2]
[356682706,1742944243484,-500.0,0.00010958,2]
[356682707,1742944243493,-500.0,0.00010958,2]
[356682708,1742944243503,-500.0,0.00010958,2]
[356682709,1742944243512,-500.0,0.00010958,2]
[356682710,1742944243521,-500.0,0.00010958,2]
[356682711,1742944243531,-296.27979836,0.00010958,2]
[356682715,1742944246296,-203.72020164,0.00010958,2]
[356682716,1742944246306,-500.0,0.00010958,2]
[356682717,1742944246317,-575.70084693,0.00010958,2]
[356682718,1742944246327,-500.0,0.00010958,2]
[356682719,1742944246340,-519.54719303,0.00010958,2]
[356682720,1742944246351,-500.0,0.00010958,2]